fUST/lending_fUST_20240916
["ID","MTS","AMOUNT","RATE_DAILY","PERIOD"]
[338283262,1726480282206,-584.91,0.00019726,2]
[338283264,1726480282216,-500.0,0.00019726,2]
[338283266,1726480282226,-603.04,0.00019726,2]
[338283268,1726480282236,-500.0,0.00019726,2]
[338283270,1726480282246,-500.0,0.00019726,2]
[338283272,1726480282256,-500.0,0.00019726,2]
[338283274,1726480282266,-500.0,0.00019726,2]
[338283276,1726480282277,-500.0,0.00019726,2]
[338283278,1726480282287,-500.0,0.00019726,2]
[338283280,1726480282299,-659.36,0.00019726,2]
[338283282,1726480282310,-500.0,0.00019726,2]
[338283285,1726480282321,-500.0,0.00019726,2]
[338283287,1726480282330,-500.0,0.00019726,2]
[338283289,1726480282341,-500.0,0.00019726,2]
[338283290,1726480282350,-54804.5,0.00019726,2]
[338283293,1726480282360,-1481.71,0.00019726,2]
[338283295,1726480282371,-500.0,0.00019726,2]
[338283297,1726480282381,-1594.86,0.00019726,2]
[338283299,1726480282391,-500.0,0.00019726,2]
[338283301,1726480282401,-500.0,0.00019726,2]
[338283303,1726480282411,-522.31,0.00019726,2]
[338283305,1726480282421,-500.0,0.00019726,2]
[338283306,1726480282433,-1752.95,0.00019726,2]
[338283308,1726480282443,-797.64,0.00019726,2]
[338283310,1726480282453,-69163.18,0.00019726,2]
[338283312,1726480282463,-500.0,0.00019726,2]
[338283314,1726480282473,-7402.16,0.00019726,2]
[338283316,1726480282482,-500.0,0.00019726,2]
[338283318,1726480282493,-500.0,0.00019726,2]
[338283320,1726480282503,-503.79780875,0.00019726,2]
[338283322,1726480282513,-9495.06,0.00019726,2]
[338283324,1726480282523,-551.46,0.00019726,2]
[338283326,1726480282533,-500.0,0.00019726,2]
[338283328,1726480282543,-500.0,0.00019726,2]
[338283330,1726480282552,-2792.89,0.00019726,2]
[338283332,1726480282562,-500.0,0.00019726,2]
[338283334,1726480282572,-500.0,0.00019726,2]
[338283335,1726480282582,-500.0,0.00019726,2]
[338283337,1726480282593,-500.0,0.00019726,2]
[338283340,1726480282604,-6418.71,0.00019726,2]
[338283341,1726480282614,-5434.99,0.00019726,2]
[338283343,1726480282624,-539.87,0.00019726,2]
[338283345,1726480282633,-1781.39,0.00019726,2]
[338283347,1726480282644,-500.0,0.00019726,2]
[338283349,1726480282654,-1318.77,0.00019726,2]
[338283351,1726480282664,-500.0,0.00019726,2]
[338283353,1726480282674,-554.73502455,0.00019726,2]
[338283355,1726480282684,-1086.99,0.00019726,2]
[338283357,1726480282694,-735.36,0.00019726,2]
[338283359,1726480282705,-500.0,0.00019726,2]
[338283361,1726480282715,-500.0,0.00019726,2]
[338283363,1726480282725,-566.23,0.00019726,2]
[338283365,1726480282735,-586.72,0.00019726,2]
[338283367,1726480282745,-500.0,0.00019726,2]
[338283369,1726480282755,-500.0,0.00019726,2]
[338283371,1726480282765,-716.63,0.00019726,2]
[338283373,1726480282775,-1412.9,0.00019726,2]
[338283375,1726480282786,-633.14,0.00019726,2]
[338283377,1726480282795,-17848.38,0.00019726,2]
[338283379,1726480282805,-500.0,0.00019726,2]
[338283381,1726480282815,-500.0,0.00019726,2]
[338283383,1726480282825,-2462.15,0.00019726,2]
[338283384,1726480282835,-332.193581,0.00019726,2]
[338283387,1726480282846,-332.193581,0.00019726,2]
[338283389,1726480282856,-500.0,0.00019726,2]
[338283390,1726480282866,-500.0,0.00019726,2]
[338283392,1726480282875,-500.0,0.00019726,2]
[338283394,1726480282885,-860.11,0.00019726,2]
[338283396,1726480282894,-4673.68,0.00019726,2]
[338283398,1726480282904,-332.193581,0.00019726,2]
[338283400,1726480282914,-332.193574,0.00019726,2]
[338283402,1726480282924,-934.19,0.00019726,2]
[338283404,1726480282936,-500.0,0.00019726,2]
[338283406,1726480282946,-1894.42,0.00019726,2]
[338283408,1726480282959,-500.0,0.00019726,2]
[338283410,1726480282969,-754.26,0.00019726,2]
[338283418,1726480283039,-31909.67,0.00019726,2]
[338283420,1726480283049,-5633.35,0.00019726,2]
[338283422,1726480283058,-6272.43,0.00019726,2]
[338283424,1726480283067,-500.0,0.00019726,2]
[338283426,1726480283077,-500.0,0.00019726,2]
[338283428,1726480283086,-500.0,0.00019726,2]
[338283430,1726480283096,-842.71,0.00019726,2]
[338283432,1726480283105,-3706.88,0.00019726,2]
[338283434,1726480283115,-500.0,0.00019726,2]
[338283436,1726480283125,-1378.42,0.00019726,2]
[338283438,1726480283135,-500.0,0.00019726,2]
[338283440,1726480283144,-979.87,0.00019726,2]
[338283442,1726480283154,-524.28090166,0.00019726,2]
[338283444,1726480283164,-500.0,0.00019726,2]
[338283446,1726480283174,-603.64,0.00019726,2]
[338283448,1726480283186,-545.72,0.00019726,2]
[338283450,1726480283195,-500.0,0.00019726,2]
[338283452,1726480283205,-348.65835893,0.00019726,2]
[338283454,1726480283215,-500.0,0.00019726,2]
[338283456,1726480283225,-26893.2,0.00019726,2]
[338283458,1726480283234,-4061.1,0.00019726,2]
[338283459,1726480283244,-500.0,0.00019726,2]
[338283461,1726480283254,-507.15051735,0.00019726,2]
[338283463,1726480283263,-500.0,0.00019726,2]
[338283465,1726480283273,-500.0,0.00019726,2]
[338283467,1726480283282,-2523.31,0.00019726,2]
[338283469,1726480283291,-500.0,0.00019726,2]
[338283471,1726480283301,-916.82,0.00019726,2]
[338283473,1726480283311,-500.0,0.00019726,2]
[338283475,1726480283320,-500.0,0.00019726,2]
[338283477,1726480283330,-500.0,0.00019726,2]
[338283479,1726480283339,-3999.24,0.00019726,2]
[338283481,1726480283350,-2415.42,0.00019726,2]
[338283483,1726480283359,-500.0,0.00019726,2]
[338283485,1726480283369,-949.27,0.00019726,2]
[338283487,1726480283379,-18665.93,0.00019726,2]
[338283489,1726480283388,-500.0,0.00019726,2]
[338283491,1726480283398,-1026.1,0.00019726,2]
[338283493,1726480283407,-521.28,0.00019726,2]
[338283495,1726480283418,-976.78,0.00019726,2]
[338283497,1726480283427,-1626.12,0.00019726,2]
[338283499,1726480283441,-1251.74,0.00019726,2]
[338283501,1726480283450,-500.0,0.00019726,2]
[338283503,1726480283459,-14025.37,0.00019726,2]
[338283505,1726480283469,-1943.44,0.00019726,2]
[338283506,1726480283478,-1971.87,0.00019726,2]
[338283508,1726480283487,-500.0,0.00019726,2]
[338283510,1726480283497,-500.0,0.00019726,2]
[338283511,1726480283509,-1838.44,0.00019726,2]
[338283512,1726480283518,-889.4,0.00019726,2]
[338283513,1726480283527,-500.0,0.00019726,2]
[338283514,1726480283537,-2832.42,0.00019726,2]
[338283515,1726480283548,-395.112909,0.00019726,2]
[338283516,1726480283557,-151.73568,0.00019726,2]
[338283517,1726480283567,-395.112909,0.00019726,2]
[338283518,1726480283577,-151.73568,0.00019726,2]
[338283519,1726480283587,-500.0,0.00019726,2]
[338283520,1726480283596,-500.0,0.00019726,2]
[338283521,1726480283606,-992.56,0.00019726,2]
[338283522,1726480283615,-500.0,0.00019726,2]
[338283523,1726480283626,-151.73568,0.00019726,2]
[338283524,1726480283635,-1828.08,0.00019726,2]
[338283525,1726480283645,-151.735677,0.00019726,2]
[338283526,1726480283654,-500.0,0.00019726,2]
[338283527,1726480283663,-1079.73,0.00019726,2]
[338283528,1726480283673,-4130.56,0.00019726,2]
[338283529,1726480283684,-395.112909,0.00019726,2]
[338283530,1726480283694,-395.112918,0.00019726,2]
[338283531,1726480283704,-151.0,0.00019726,2]
[338283533,1726480283714,-151.0,0.00019726,2]
[338283535,1726480283724,-151.0,0.00019726,2]
[338283537,1726480283734,-151.0,0.00019726,2]
[338283539,1726480283744,-2109.31,0.00019726,2]
[338283541,1726480283754,-851.64,0.00019726,2]
[338283543,1726480283764,-607.3,0.00019726,2]
[338283545,1726480283774,-502.47389811,0.00019726,2]
[338283548,1726480283784,-500.0,0.00019726,2]
[338283550,1726480283794,-1699.2,0.00019726,2]
[338283552,1726480283803,-500.0,0.00019726,2]
[338283554,1726480283813,-2088.4,0.00019726,2]
[338283556,1726480283823,-1813.44,0.00019726,2]
[338283558,1726480283832,-1783.95,0.00019726,2]
[338283560,1726480283842,-500.0,0.00019726,2]
[338283562,1726480283851,-3968.76,0.00019726,2]
[338283564,1726480283861,-500.0,0.00019726,2]
[338283566,1726480283870,-500.0,0.00019726,2]
[338283568,1726480283880,-2548.01,0.00019726,2]
[338283570,1726480283889,-151.0,0.00019726,2]
[338283572,1726480283899,-500.0,0.00019726,2]
[338283574,1726480283908,-500.0,0.00019726,2]
[338283576,1726480283917,-1321.28,0.00019726,2]
[338283578,1726480283927,-957.15,0.00019726,2]
[338283580,1726480283943,-2034.661873,0.00019726,2]
[338283582,1726480283954,-500.0,0.00019726,2]
[338283584,1726480283963,-500.0,0.00019726,2]
[338283586,1726480283972,-2034.661873,0.00019726,2]
[338283588,1726480283982,-500.0,0.00019726,2]
[338283590,1726480283991,-2034.661873,0.00019726,2]
[338283592,1726480284001,-2034.661872,0.00019726,2]
[338283594,1726480284011,-500.0,0.00019726,2]
[338283596,1726480284020,-3203.32,0.00019726,2]
[338283598,1726480284030,-1505.12,0.00019726,2]
[338283600,1726480284039,-503.68696063,0.00019726,2]
[338283602,1726480284049,-646.03,0.00019726,2]
[338283604,1726480284058,-213.441133,0.00019726,2]
[338283606,1726480284068,-559.53,0.00019726,2]
[338283608,1726480284077,-500.0,0.00019726,2]
[338283610,1726480284087,-500.0,0.00019726,2]
[338283612,1726480284097,-500.0,0.00019726,2]
[338283614,1726480284108,-3072.1,0.00019726,2]
[338283616,1726480284118,-500.0,0.00019726,2]
[338283619,1726480284128,-500.0,0.00019726,2]
[338283621,1726480284138,-1244.18,0.00019726,2]
[338283623,1726480284147,-891.56,0.00019726,2]
[338283625,1726480284158,-619.31,0.00019726,2]
[338283627,1726480284167,-500.0,0.00019726,2]
[338283629,1726480284177,-620.1,0.00019726,2]
[338283631,1726480284189,-1707.82,0.00019726,2]
[338283633,1726480284199,-500.0,0.00019726,2]
[338283635,1726480284209,-2405.51,0.00019726,2]
[338283637,1726480284219,-621.88,0.00019726,2]
[338283639,1726480284229,-684.89,0.00019726,2]
[338283641,1726480284239,-3518.82,0.00019726,2]
[338283643,1726480284249,-500.0,0.00019726,2]
[338283645,1726480284260,-500.0,0.00019726,2]
[338283647,1726480284271,-424.36170486,0.00019726,2]
[338283649,1726480284282,-500.0,0.00019726,2]
[338283651,1726480284292,-500.0,0.00019726,2]
[338283654,1726480284302,-500.0,0.00019726,2]
[338283656,1726480284312,-500.0,0.00019726,2]
[338283658,1726480284321,-500.0,0.00019726,2]
[338283660,1726480284331,-500.0,0.00019726,2]
[338283662,1726480284341,-1126.46,0.00019726,2]
[338283664,1726480284350,-540.77,0.00019726,2]
[338283666,1726480284360,-644.05801489,0.00019726,2]
[338283668,1726480284371,-14548.06,0.00019726,2]
[338283670,1726480284381,-500.0,0.00019726,2]
[338283672,1726480284390,-1952.43,0.00019726,2]
[338283674,1726480284400,-500.0,0.00019726,2]
[338283676,1726480284410,-500.0,0.00019726,2]
[338283678,1726480284420,-500.0,0.00019726,2]
[338283680,1726480284431,-500.0,0.00019726,2]
[338283682,1726480284441,-500.0,0.00019726,2]
[338283684,1726480284453,-500.0,0.00019726,2]
[338283686,1726480284463,-1288.56,0.00019726,2]
[338283688,1726480284472,-1173.03,0.00019726,2]
[338283690,1726480284482,-500.0,0.00019726,2]
[338283692,1726480284492,-2009.03,0.00019726,2]
[338283694,1726480284502,-500.0,0.00019726,2]
[338283696,1726480284512,-500.0,0.00019726,2]
[338283698,1726480284522,-500.0,0.00019726,2]
[338283700,1726480284531,-8791.0,0.00019726,2]
[338283702,1726480284541,-500.0,0.00019726,2]
[338283705,1726480284552,-2524.6,0.00019726,2]
[338283707,1726480284562,-500.0,0.00019726,2]
[338283709,1726480284572,-1068.79,0.00019726,2]
[338283711,1726480284582,-2954.84,0.00019726,2]
[338283713,1726480284591,-938.45,0.00019726,2]
[338283715,1726480284601,-3687.12,0.00019726,2]
[338283717,1726480284611,-500.0,0.00019726,2]
[338283719,1726480284621,-1054.825576,0.00019726,2]
[338283721,1726480284630,-1054.825576,0.00019726,2]
[338283723,1726480284641,-171.038366,0.00019726,2]
[338283725,1726480284651,-171.038366,0.00019726,2]
[338283727,1726480284661,-1054.825576,0.00019726,2]
[338283729,1726480284671,-1054.825569,0.00019726,2]
[338283731,1726480284683,-500.0,0.00019726,2]
[338283733,1726480284693,-171.038366,0.00019726,2]
[338283735,1726480284702,-171.038371,0.00019726,2]
[338283737,1726480284713,-352.52154655,0.00019726,2]
[338283740,1726480284724,-8098.976506,0.00019863,2]
[338283742,1726480284734,-5000.0,0.0001987,2]
[338283744,1726480284744,-5000.0,0.0001987,2]
[338283746,1726480284754,-5000.0,0.0001987,2]
[338283748,1726480284765,-5000.0,0.0001987,2]
[338283750,1726480284775,-2218.06560547,0.0001988,2]
[338283752,1726480284786,-150.0,0.00019973,2]
[338283754,1726480284796,-348.17837644,0.0002,2]
[338283756,1726480284805,-500.0,0.0002,2]
[338283758,1726480284815,-500.0,0.0002,2]
[338283760,1726480284825,-156.32992232,0.0002,2]
[338283762,1726480284836,-500.0,0.0002,2]
[338283764,1726480284846,-500.0,0.0002,2]
[338283767,1726480284856,-500.0,0.0002,2]
[338283769,1726480284867,-500.0,0.0002,2]
[338283771,1726480284877,-500.0,0.0002,2]
[338283773,1726480284887,-500.0,0.0002,2]
[338283775,1726480284898,-500.0,0.0002,2]
[338283777,1726480284909,-6001.41181434,0.0002,2]
[338283780,1726480284919,-500.0,0.0002,2]
[338283782,1726480284929,-500.0,0.0002,2]
[338283784,1726480284940,-500.0,0.0002,2]
[338283786,1726480284954,-500.0,0.0002,2]
[338283788,1726480284964,-500.0,0.0002,2]
[338283790,1726480284974,-500.0,0.0002,2]
[338283792,1726480284984,-1305.55,0.0002,2]
[338283794,1726480284994,-500.0,0.0002,2]
[338283796,1726480285004,-500.0,0.0002,2]
[338283798,1726480285014,-500.0,0.0002,2]
[338283800,1726480285023,-500.0,0.0002,2]
[338283802,1726480285034,-500.0,0.0002,2]
[338283804,1726480285043,-500.0,0.0002,2]
[338283806,1726480285053,-500.0,0.0002,2]
[338283808,1726480285063,-992.05,0.0002,2]
[338283810,1726480285074,-503.31956141,0.0002,2]
[338283812,1726480285083,-500.0,0.0002,2]
[338283814,1726480285093,-500.0,0.0002,2]
[338283816,1726480285103,-492.09204323,0.0002,2]
[338283818,1726480285114,-500.0,0.0002,2]
[338283820,1726480285124,-500.0,0.0002,2]
[338283823,1726480285135,-555.20333636,0.0002,2]
[338283825,1726480285144,-1035.69,0.0002,2]
[338283827,1726480285154,-563.98,0.0002,2]
[338283829,1726480285164,-500.0,0.0002,2]
[338283831,1726480285175,-1861.54,0.0002,2]
[338283833,1726480285188,-500.0,0.0002,2]
[338283835,1726480285198,-1154.31,0.0002,2]
[338283837,1726480285208,-677.66,0.0002,2]
[338283839,1726480285218,-657.05,0.0002,2]
[338283841,1726480285228,-500.0,0.0002,2]
[338283843,1726480285238,-500.0,0.0002,2]
[338283845,1726480285248,-739.0,0.0002,2]
[338283847,1726480285258,-500.9049167,0.0002,2]
[338283849,1726480285269,-1435.08,0.0002,2]
[338283852,1726480285280,-500.0,0.0002,2]
[338283854,1726480285290,-500.0,0.0002,2]
[338283856,1726480285300,-635.85,0.0002,2]
[338283858,1726480285310,-500.0,0.0002,2]
[338283860,1726480285321,-1142.29,0.0002,2]
[338283862,1726480285332,-500.0,0.0002,2]
[338283864,1726480285342,-585.88,0.0002,2]
[338283866,1726480285353,-500.0,0.0002,2]
[338283868,1726480285363,-784.81,0.0002,2]
[338283871,1726480285375,-500.0,0.0002,2]
[338283873,1726480285385,-500.0,0.0002,2]
[338283875,1726480285394,-504.53,0.0002,2]
[338283877,1726480285404,-784.81,0.0002,2]
[338283879,1726480285414,-500.0,0.0002,2]
[338283881,1726480285425,-500.0,0.0002,2]
[338283883,1726480285437,-500.0,0.0002,2]
[338283885,1726480285447,-500.0,0.0002,2]
[338283887,1726480285457,-500.0,0.0002,2]
[338283889,1726480285467,-500.0,0.0002,2]
[338283891,1726480285477,-500.0,0.0002,2]
[338283893,1726480285487,-500.0,0.0002,2]
[338283895,1726480285498,-500.0,0.0002,2]
[338283897,1726480285509,-500.0,0.0002,2]
[338283899,1726480285520,-500.0,0.0002,2]
[338283901,1726480285531,-500.0,0.0002,2]
[338283903,1726480285540,-500.0,0.0002,2]
[338283905,1726480285551,-867.55,0.0002,2]
[338283907,1726480285564,-501.57513495,0.0002,2]
[338283910,1726480285574,-1082.55,0.0002,2]
[338283912,1726480285584,-634.82,0.0002,2]
[338283914,1726480285595,-920.38,0.0002,2]
[338283916,1726480285605,-601.33,0.0002,2]
[338283918,1726480285615,-662.09,0.0002,2]
[338283920,1726480285625,-2146.36,0.0002,2]
[338283922,1726480285635,-500.0,0.0002,2]
[338283924,1726480285646,-500.0,0.0002,2]
[338283926,1726480285656,-500.0,0.0002,2]
[338283928,1726480285667,-500.0,0.0002,2]
[338283930,1726480285679,-747.45,0.0002,2]
[338283933,1726480285693,-500.0,0.0002,2]
[338283935,1726480285703,-302.42,0.0002,2]
[338283937,1726480285713,-500.0,0.0002,2]
[338283939,1726480285723,-3011.8,0.0002,2]
[338283941,1726480285733,-500.0,0.0002,2]
[338283943,1726480285743,-728.75,0.0002,2]
[338283945,1726480285754,-500.0,0.0002,2]
[338283947,1726480285763,-500.0,0.0002,2]
[338283949,1726480285774,-1951.62,0.0002,2]
[338283951,1726480285784,-500.0,0.0002,2]
[338283953,1726480285795,-500.0,0.0002,2]
[338283955,1726480285805,-500.0,0.0002,2]
[338283957,1726480285815,-948.91,0.0002,2]
[338283959,1726480285825,-716.55,0.0002,2]
[338283961,1726480285836,-500.0,0.0002,2]
[338283963,1726480285846,-500.0,0.0002,2]
[338283965,1726480285856,-500.0,0.0002,2]
[338283968,1726480285866,-710.16,0.0002,2]
[338283970,1726480285876,-847.78,0.0002,2]
[338283972,1726480285886,-611.81,0.0002,2]
[338283974,1726480285896,-1199.84,0.0002,2]
[338283976,1726480285907,-500.0,0.0002,2]
[338283978,1726480285916,-500.0,0.0002,2]
[338283980,1726480285926,-635.48302494,0.0002,2]
[338283982,1726480285938,-500.0,0.0002,2]
[338283984,1726480285948,-500.0,0.0002,2]
[338283986,1726480285958,-1697.28,0.0002,2]
[338283989,1726480285969,-793.27,0.0002,2]
[338283991,1726480285980,-500.0,0.0002,2]
[338283993,1726480285990,-500.0,0.0002,2]
[338283995,1726480286001,-500.0,0.0002,2]
[338283997,1726480286011,-500.0,0.0002,2]
[338283999,1726480286020,-1031.01,0.0002,2]
[338284001,1726480286030,-500.0,0.0002,2]
[338284003,1726480286040,-500.0,0.0002,2]
[338284005,1726480286050,-510.09038545,0.0002,2]
[338284007,1726480286060,-501.11902355,0.0002,2]
[338284009,1726480286070,-500.0,0.0002,2]
[338284011,1726480286081,-500.0,0.0002,2]
[338284013,1726480286090,-500.0,0.0002,2]
[338284016,1726480286101,-500.0,0.0002,2]
[338284018,1726480286111,-500.0,0.0002,2]
[338284020,1726480286121,-415.37014871,0.0002,2]
[338284022,1726480286131,-1107.24,0.0002,2]
[338284024,1726480286141,-500.0,0.0002,2]
[338284026,1726480286151,-1127.56,0.0002,2]
[338284028,1726480286161,-500.0,0.0002,2]
[338284030,1726480286172,-492.29444015,0.0002,2]
[338284032,1726480286183,-500.0,0.0002,2]
[338284034,1726480286193,-500.0,0.0002,2]
[338284036,1726480286204,-712.55,0.0002,2]
[338284038,1726480286214,-500.0,0.0002,2]
[338284040,1726480286224,-573.61631528,0.0002,2]
[338284042,1726480286235,-512.46009983,0.0002,2]
[338284044,1726480286245,-250.0,0.0002,2]
[338284047,1726480286256,-500.0,0.0002,2]
[338284049,1726480286265,-500.0,0.0002,2]
[338284051,1726480286276,-500.0,0.0002,2]
[338284053,1726480286286,-500.0,0.0002,2]
[338284055,1726480286297,-500.0,0.0002,2]
[338284057,1726480286307,-500.0,0.0002,2]
[338284059,1726480286318,-523.64,0.0002,2]
[338284061,1726480286328,-566.16,0.0002,2]
[338284063,1726480286339,-500.0,0.0002,2]
[338284065,1726480286349,-1722.57,0.0002,2]
[338284067,1726480286359,-500.0,0.0002,2]
[338284070,1726480286369,-500.0,0.0002,2]
[338284072,1726480286379,-500.0,0.0002,2]
[338284074,1726480286390,-500.0,0.0002,2]
[338284076,1726480286400,-500.0,0.0002,2]
[338284078,1726480286411,-838.19,0.0002,2]
[338284080,1726480286421,-805.36,0.0002,2]
[338284082,1726480286432,-817.35,0.0002,2]
[338284084,1726480286442,-500.0,0.0002,2]
[338284086,1726480286453,-755.83,0.0002,2]
[338284088,1726480286464,-500.0,0.0002,2]
[338284110,1726480286651,-500.0,0.0002,2]
[338284113,1726480286670,-500.0,0.0002,2]
[338284115,1726480286680,-366.13086698,0.0002,2]
[338284117,1726480286691,-500.0,0.0002,2]
[338284119,1726480286700,-500.0,0.0002,2]
[338284121,1726480286710,-686.14,0.0002,2]
[338284123,1726480286720,-500.0,0.0002,2]
[338284126,1726480286732,-2023.35,0.0002,2]
[338284128,1726480286741,-500.0,0.0002,2]
[338284130,1726480286751,-500.0,0.0002,2]
[338284132,1726480286761,-500.0,0.0002,2]
[338284134,1726480286771,-500.0,0.0002,2]
[338284136,1726480286780,-500.0,0.0002,2]
[338284138,1726480286789,-638.44411515,0.0002,2]
[338284140,1726480286799,-500.0,0.0002,2]
[338284142,1726480286809,-500.0,0.0002,2]
[338284144,1726480286818,-975.44,0.0002,2]
[338284146,1726480286827,-500.0,0.0002,2]
[338284148,1726480286837,-500.0,0.0002,2]
[338284149,1726480286846,-754.82,0.0002,2]
[338284150,1726480286855,-500.0,0.0002,2]
[338284151,1726480286865,-500.0,0.0002,2]
[338284152,1726480286874,-500.0,0.0002,2]
[338284153,1726480286884,-513.68,0.0002,2]
[338284154,1726480286894,-489.28773159,0.0002,2]
[338284155,1726480286903,-500.0,0.0002,2]
[338284156,1726480286912,-312.64212075,0.0002,2]
[338284157,1726480286922,-495.21557144,0.0002,2]
[338284158,1726480286931,-500.0,0.0002,2]
[338284159,1726480286940,-500.0,0.0002,2]
[338284160,1726480286951,-500.0,0.0002,2]
[338284161,1726480286962,-500.0,0.0002,2]
[338284162,1726480286971,-500.0,0.0002,2]
[338284163,1726480286980,-308.40450288,0.0002,2]
[338284164,1726480286989,-2728.4,0.0002,2]
[338284165,1726480286999,-500.0,0.0002,2]
[338284166,1726480287009,-814.56,0.0002,2]
[338284167,1726480287018,-559.36,0.0002,2]
[338284168,1726480287028,-1113.58,0.0002,2]
[338284169,1726480287037,-2270.2,0.0002,2]
[338284171,1726480287048,-500.0,0.0002,2]
[338284173,1726480287058,-500.0,0.0002,2]
[338284175,1726480287067,-500.0,0.0002,2]
[338284177,1726480287077,-1687.86,0.0002,2]
[338284179,1726480287087,-753.35,0.0002,2]
[338284181,1726480287097,-500.0,0.0002,2]
[338284183,1726480287106,-592.97,0.0002,2]
[338284185,1726480287116,-2381.45,0.0002,2]
[338284187,1726480287126,-500.0,0.0002,2]
[338284189,1726480287136,-913.8,0.0002,2]
[338284191,1726480287146,-500.0,0.0002,2]
[338284193,1726480287155,-500.0,0.0002,2]
[338284195,1726480287165,-500.0,0.0002,2]
[338284197,1726480287174,-515.64503092,0.0002,2]
[338284199,1726480287187,-1143.69,0.0002,2]
[338284201,1726480287197,-500.0,0.0002,2]
[338284203,1726480287207,-500.0,0.0002,2]
[338284205,1726480287221,-500.0,0.0002,2]
[338284208,1726480287231,-500.0,0.0002,2]
[338284210,1726480287240,-1869.19,0.0002,2]
[338284212,1726480287250,-500.0,0.0002,2]
[338284214,1726480287260,-1545.45,0.0002,2]
[338284216,1726480287269,-500.0,0.0002,2]
[338284218,1726480287280,-1560.25,0.0002,2]
[338284220,1726480287290,-2285.26,0.0002,2]
[338284222,1726480287302,-500.0,0.0002,2]
[338284224,1726480287312,-1958.98,0.0002,2]
[338284226,1726480287322,-1085.74,0.0002,2]
[338284228,1726480287332,-618.36,0.0002,2]
[338284230,1726480287341,-500.0,0.0002,2]
[338284232,1726480287351,-2019.41,0.0002,2]
[338284234,1726480287360,-848.49,0.0002,2]
[338284236,1726480287370,-500.0,0.0002,2]
[338284238,1726480287380,-720.4,0.0002,2]
[338284240,1726480287390,-780.27,0.0002,2]
[338284242,1726480287399,-1659.07,0.0002,2]
[338284244,1726480287409,-500.0,0.0002,2]
[338284246,1726480287418,-1031.97,0.0002,2]
[338284248,1726480287428,-990.46,0.0002,2]
[338284251,1726480287448,-511.13255252,0.0002,2]
[338284252,1726480287457,-4335.59,0.0002,2]
[338284254,1726480287467,-866.58,0.0002,2]
[338284257,1726480287478,-643.80595619,0.0002,2]
[338284259,1726480287488,-3081.57,0.0002,2]
[338284261,1726480287498,-576.48,0.0002,2]